fUSD/lending_fUSD_20240527
["ID","MTS","AMOUNT","RATE_DAILY","PERIOD"]
[328006911,1716768632816,-155.0,0.00012653,2]
[328006912,1716768632827,-254.12146104,0.00012654,2]
[328006913,1716768632983,-126.57891037,0.00012654,2]
[328006914,1716768632993,-2916.94245182,0.00012672,2]
[328006915,1716768633002,-159.63814161,0.000128,2]
[328006916,1716768633012,-827.3928,0.000129,2]
[328006917,1716768633022,-322.71818217,0.000129,2]
[328006918,1716768633033,-259.93831373,0.00012998,2]
[328006919,1716768633046,-318.15299134,0.00012999,2]
[328006920,1716768633055,-150.0,0.00012999,2]
[328006921,1716768633064,-150.0,0.00012999,2]
[328006922,1716768633075,-305652.87896792,0.00013,2]
[328006923,1716768633087,-12334.63957921,0.00013,2]
[328006924,1716768633098,-26963.18784721,0.00013,2]
[328006925,1716768633110,-49568.42193867,0.00013,2]
[328006926,1716768633123,-43931.98997388,0.00013,2]
[328006927,1716768633135,-574.32971375,0.00013,2]
[328006928,1716768633146,-514.29235671,0.00013,2]
[328006929,1716768633157,-451.81721999,0.00013,2]
[328006930,1716768633211,-20146.34117442,0.00013,2]
[328006940,1716768638407,-494.72760592,0.00013,2]
[328006941,1716768638419,-8452.38383829,0.00013,2]
[328006942,1716768638431,-3337.5717888,0.00013,2]
[328006943,1716768638442,-3829.59370794,0.00013,2]
[328006944,1716768638466,-421.399227,0.00013,2]
[328006945,1716768638478,-4422.33067648,0.00013,2]
[328006946,1716768638489,-746.89027862,0.00013,2]
[328006947,1716768638500,-2220.0,0.00013,2]
[328006948,1716768638511,-17891.94044383,0.00013,2]
[328006949,1716768638523,-2253.58398299,0.00013,2]
[328006950,1716768638535,-12529.39065876,0.00013,2]
[328006951,1716768638584,-4556.08170398,0.00013,2]
[328006952,1716768638643,-675.13887568,0.00013,2]
[328006953,1716768638656,-1651.94935281,0.00013,2]
[328006954,1716768638705,-2514.35144978,0.00013,2]
[328006955,1716768638716,-479.77795545,0.00013,2]
[328006956,1716768638728,-463.72531286,0.00013,2]
[328006957,1716768638763,-2145.76887824,0.00013,2]
[328006958,1716768638775,-785.23100942,0.00013,2]
[328006959,1716768638786,-1637.09935816,0.00013,2]
[328006960,1716768638825,-454.93443725,0.00013,2]
[328006961,1716768638836,-16318.24771686,0.00013,2]
[328006978,1716768640806,-515.71261021,0.000129,2]
[328006979,1716768640815,-172.97109271,0.00013,2]
[328006981,1716768640864,-44279.45710241,0.00013,2]
[328006982,1716768640875,-4316.5918931,0.00013,2]
[328006983,1716768641472,-834.30178552,0.00013,2]
[328006984,1716768641530,-473.48421737,0.00013,2]
[328006985,1716768641541,-8334.29170271,0.00013,2]
[328006987,1716768643440,-316.156902,0.00013,2]
[328006996,1716768644032,-368.59145831,0.00013,2]
[328006999,1716768644050,-29933.18799922,0.00013,2]
[328007001,1716768644062,-3783.98196052,0.00013,2]
[328007003,1716768644073,-25902.17929169,0.00013,2]
[328007005,1716768644087,-38598.53847595,0.00013,2]
[328007007,1716768644101,-664.71876601,0.00013,2]
[328007010,1716768644113,-61703.23768009,0.00013,2]
[328007012,1716768644127,-292.00081544,0.00013,2]
[328007036,1716768646854,-155.17140119,0.00012999,2]
[328007037,1716768646864,-1673.44195839,0.00013,2]
[328007038,1716768646973,-259.93831373,0.00013,2]
[328007039,1716768646985,-713.10704317,0.00013,2]
[328007040,1716768647040,-451.23950393,0.00013,2]
[328007041,1716768798252,195.689431,0.00030218,120]
[328007086,1716769634166,-150.0,0.00012798,2]
[328007087,1716769634187,-174.08798162,0.00012799,2]
[328007089,1716769645097,-2458.67458587,0.00012799,2]
[328007090,1716769656574,7199.23557386,0.00031,120]
[328007097,1716769831748,-150.0,0.00012798,2]
[328007098,1716769831757,-296.45853724,0.00012798,2]
[328007099,1716769831889,-2247.98186301,0.00012798,2]
[328007100,1716769832041,-407.44106543,0.00012798,2]
[328007101,1716769832052,-731.32,0.00012798,2]
[328007123,1716769837658,-1316.79853432,0.00012798,2]
[328007124,1716769837668,-5545.00078255,0.00012799,2]
[328007125,1716769837795,-27224.77897853,0.00012799,2]
[328007126,1716769837805,-599.8855,0.000128,2]
[328007127,1716769837815,-210.5982,0.000128,2]
[328007128,1716769837824,-9063.5266,0.000128,2]
[328007129,1716769837834,-362.67032,0.0001287,2]
[328007130,1716769837843,-92184.10848285,0.000129,2]
[328007131,1716769837885,-600.22369564,0.000129,2]
[328007132,1716769837898,-1923.84,0.000129,2]
[328007133,1716769837944,-6891.231292,0.000129,2]
[328007134,1716769837956,-2755.45833377,0.000129,2]
[328007141,1716769840253,-396.30753838,0.000129,2]
[328007143,1716769840266,-333.81892786,0.000129,2]
[328007146,1716769840278,-5528.7411405,0.000129,2]
[328007147,1716769840289,-264.4956,0.000129,2]
[328007148,1716769840301,-35799.798289,0.000129,2]
[328007149,1716769840311,-2051.38097771,0.000129,2]
[328007150,1716769840320,-451.24853396,0.000129,2]
[328007151,1716769840329,-322.71818217,0.000129,2]
[328007152,1716769840338,-162.55,0.0001299,2]
[328007153,1716769840348,-324.08662883,0.00012999,2]
[328007154,1716769840359,-33877.96755494,0.00013,2]
[328007155,1716769840371,-744.17817343,0.00013,2]
[328007156,1716769840383,-3175.82164568,0.00013,2]
[328007157,1716769840395,-533.76859404,0.00013,2]
[328007158,1716769840407,-767.94,0.00013,2]
[328007159,1716769840419,-823.88979948,0.00013,2]
[328007160,1716769840435,-406.24944498,0.00013,2]
[328007161,1716769840465,-460.63094984,0.00013,2]
[328007162,1716769840912,-309446.42348454,0.00013,2]
[328007163,1716769840922,-589355.24734976,0.00013,2]
[328007164,1716769840931,-500.0,0.00013,2]
[328007165,1716769840940,-500.0,0.00013,2]
[328007166,1716769840950,-500.0,0.00013,2]
[328007167,1716769840959,-809.0,0.00013,2]
[328007168,1716769840968,-161.96,0.00013973,2]
[328007169,1716769840978,-153.5,0.00013973,2]
[328007170,1716769840987,-180.91,0.00013973,2]
[328007171,1716769840996,-154.37,0.00013973,2]
[328007172,1716769841006,-210.0,0.00014078,2]
[328007173,1716769841015,-2051.38097762,0.00014945,2]
[328007174,1716769841024,-257.20801344,0.00015,2]
[328007175,1716769841034,-8094.00748776,0.00015,2]
[328007176,1716769841043,-200.0,0.00015,2]
[328007177,1716769841052,-155.0,0.00015,2]
[328007178,1716769841061,-325.10674615,0.00015333,2]
[328007179,1716769841071,-155.0,0.00015334,2]
[328007180,1716769841080,-523.82451147,0.00015335,2]
[328007181,1716769841090,-362.67033,0.0001537,2]
[328007183,1716769841099,-451.24853392,0.00016114,2]
[328007184,1716769841108,-2051.38097762,0.00016991,2]
[328007186,1716769841118,-259.94,0.0001705,2]
[328007188,1716769841128,-7521.94316228,0.00017259,2]
[328007190,1716769841137,-362.67032,0.0001787,2]
[328007192,1716769841146,-804.18664536,0.00018,2]
[328007194,1716769841156,-151.0,0.00018351,3]
[328007196,1716769841165,-151.0,0.00018351,2]
[328007198,1716769841174,-700.07,0.00018836,2]
[328007200,1716769841183,-3125.56667471,0.00018892,2]
[328007202,1716769841195,-1999.7835296,0.00018892,2]
[328007205,1716769841206,-1431.735824,0.00018892,2]
[328007209,1716769841242,-322.87653265,0.00018892,2]
[328007212,1716769841253,-420.47847543,0.00018892,2]
[328007214,1716769841263,-1147.94373023,0.00018892,2]
[328007216,1716769841275,-896.82497611,0.00018892,2]
[328007217,1716769841286,-894.5496708,0.00018892,2]
[328007218,1716769841298,-5493.55,0.00018892,2]
[328007219,1716769841310,-281.70783134,0.00018892,2]
[328007220,1716769841321,-303.94329984,0.00018892,2]
[328007221,1716769841332,-712.87,0.00018892,2]
[328007222,1716769841344,-6868.16945529,0.00018892,2]
[328007223,1716769841353,-684.87,0.00018893,2]
[328007224,1716769841362,-676.93,0.00018939,2]
[328007225,1716769841371,-2751.0,0.00018966,2]
[328007226,1716769841380,-250.0,0.00018968,2]
[328007228,1716769841389,-2312.05,0.00018986,2]
[328007229,1716769841397,-4699.08,0.00018997,2]
[328007231,1716769841407,-410.67512791,0.00019,2]
[328007233,1716769841416,-200.0,0.00019002,2]
[328007235,1716769841425,-172.95,0.00019006,2]
[328007237,1716769841435,-250.0,0.00019007,2]
[328007239,1716769841444,-323.07,0.00019032,2]
[328007241,1716769841453,-2051.38097762,0.00019036,2]
[328007243,1716769841462,-158.09,0.00019054,2]
[328007245,1716769841471,-2449.67,0.00019054,2]
[328007247,1716769841480,-259.94,0.00019314,2]
[328007249,1716769841489,-451.24853392,0.00019329,2]
[328007251,1716769841498,-175.73,0.00019543,2]
[328007253,1716769841507,-151.0,0.00019909,2]
[328007255,1716769841516,-6244.01880649,0.0002,2]
[328007256,1716769841526,-634.05792568,0.0002,2]
[328007257,1716769841535,-5190.00947145,0.0002,2]
[328007258,1716769841544,-251.702,0.00020128,2]
[328007259,1716769841553,-251.702,0.00020128,2]
[328007260,1716769841563,-1007.719,0.00020128,2]
[328007261,1716769841572,-264.0,0.00020128,2]
[328007262,1716769841581,-164.0,0.00020128,2]
[328007263,1716769841590,-168.196,0.00020178,2]
[328007264,1716769841599,-168.196,0.00020178,2]
[328007265,1716769841608,-168.196,0.00020179,2]
[328007266,1716769841618,-168.196,0.0002018,2]
[328007267,1716769841627,-168.196,0.00020181,2]
[328007268,1716769841637,-168.196,0.00020181,2]
[328007269,1716769841646,-168.196,0.00020182,2]
[328007270,1716769841655,-168.196,0.00020183,2]
[328007271,1716769841664,-172.95,0.00020273,2]
[328007272,1716769841673,-150.0,0.00020309,2]
[328007273,1716769841683,-362.67033,0.0002037,2]
[328007274,1716769841692,-153.5,0.00020447,2]
[328007275,1716769841701,-180.91,0.00020447,2]
[328007276,1716769841710,-1050.0,0.00021,2]
[328007277,1716769841720,-171.94,0.00021003,2]
[328007278,1716769841728,-2051.38097762,0.00021082,2]
[328007279,1716769841738,-676.93,0.00021306,2]
[328007280,1716769841747,-323.07,0.00021411,2]
[328007281,1716769841756,-151.0,0.00021468,3]
[328007282,1716769841765,-172.95,0.00021541,2]
[328007283,1716769841775,-700.07,0.00021576,2]
[328007284,1716769841784,-259.94,0.00021578,2]
[328007285,1716769841793,-150.0,0.00021679,2]
[328007286,1716769841802,-6776.29426629,0.000219,2]
[328007287,1716769841812,-44.49346569,0.00021918,2]
[328007288,1716769841842,-331.7711731,0.00021918,2]
[328007289,1716769841853,-410.65536121,0.00021918,2]
[328007290,1716769841864,-250.0,0.00021918,2]
[328007291,1716769841872,-1531.22425939,0.00022,2]
[328007309,1716769842687,-1147.92795511,0.00022,2]
[328007323,1716769842789,-4186.85176665,0.00022,2]
[328007325,1716769842801,-2295.51346938,0.00022,2]
[328007327,1716769842810,-158.12639607,0.00022142,2]
[328007329,1716769842820,-150.4563769,0.00022179,2]
[328007331,1716769842829,-451.24853392,0.00022543,2]
[328007333,1716769842838,-172.95,0.00022808,2]
[328007335,1716769842847,-362.67032,0.0002287,2]
[328007337,1716769842856,-1100.0,0.00023,2]
[328007339,1716769842867,-2051.38097762,0.00023127,2]
[328007340,1716769842875,-150.0,0.00023128,2]
[328007342,1716769842883,-153.7849766,0.00023426,2]
[328007343,1716769842892,-676.93,0.00023674,2]
[328007344,1716769842901,-323.07,0.0002379,2]
[328007345,1716769842909,-259.94,0.00023842,2]
[328007347,1716769842917,-152.4176735,0.00023969,2]
[328007348,1716769842926,-75295.19926236,0.00024,3]
[328007349,1716769842938,-440.0065,0.00024,3]
[328007350,1716769842956,-5878.4156058,0.00024,3]
[328007351,1716769842968,-731.4392052,0.00024,3]
[328007352,1716769842979,-302.418,0.00024,3]
[328007353,1716769842989,-2186.37961417,0.00024,3]
[328007354,1716769843001,-5815.85887887,0.00024,3]
[328007355,1716769843012,-3882.37336771,0.00024,3]
[328007601,1716769845726,-605.4629941,0.00012998,2]
[328007602,1716769845737,-162.76290291,0.00012998,2]
[328007603,1716769845746,-4761.17547126,0.00024,3]
[328007604,1716769845758,-1611.63040928,0.00024,3]
[328007605,1716769845770,-2348.4385,0.00024,3]
[328007606,1716769845817,-638.3,0.00024,3]
[328007607,1716769845909,-16132.57168591,0.00024,3]
[328007609,1716769846040,-7141.06143486,0.00024,3]
[328007611,1716769846052,-512.69676818,0.00024,3]
[328007624,1716770132543,1148.39614573,0.00031,120]
[328007627,1716770844151,-240.97298843,0.00010974,2]
[328007628,1716770950116,-282.17336635,0.00010971,2]
[328007629,1716770950138,-644.06681603,0.00010972,2]
[328007630,1716770950160,-475.83877437,0.00010974,2]
[328007631,1716770950181,-9893.7713674,0.00011,2]
[328007632,1716770967109,-106.2286326,0.00011,2]
[328007638,1716771031959,-281.96437543,0.00012898,2]
[328007639,1716771031969,-155.0,0.00012898,2]
[328007640,1716771031979,-644.06681603,0.00012899,2]
[328007641,1716771031988,-465.06118893,0.000129,2]
[328007642,1716771032008,-855.15005332,0.000129,2]
[328007643,1716771032017,-1287.33422707,0.000129,2]
[328007644,1716771032031,-308.775,0.000129,2]
[328007645,1716771032045,-21542.44191226,0.000129,2]
[328007646,1716771032057,-1641.7,0.000129,2]
[328007647,1716771032072,-39923.56796067,0.000129,2]
[328007648,1716771032082,-682.37751381,0.000129,2]
[328007649,1716771032092,-198.4122238,0.000129,2]
[328007650,1716771032102,-419.39714884,0.000129,2]
[328007651,1716771032115,-162.43358455,0.000129,2]
[328007652,1716771032126,-642.10736441,0.000129,2]
[328007653,1716771032135,-10132.84883356,0.000129,2]
[328007654,1716771032148,-162.55,0.0001299,2]
[328007655,1716771032157,-2894.91464483,0.00012997,2]
[328007656,1716771032167,-884.2717764,0.00012998,2]
[328007657,1716771032177,-503.85224682,0.00012998,2]
[328007658,1716771032186,-162.8176661,0.00012999,2]
[328007659,1716771032195,-499.99,0.00012999,2]
[328007660,1716771032205,-388534.93799785,0.00013,2]
[328007661,1716771032217,-2537.80431815,0.00013,2]
[328007662,1716771032233,-1691.99840201,0.00013,2]
[328007663,1716771032244,-5962.26601514,0.00013,2]
[328007664,1716771032255,-447.53187127,0.00013,2]
[328007665,1716771032271,-62184.3119,0.00013,2]
[328007666,1716771032283,-787.72537109,0.00013,2]
[328007667,1716771032293,-638.49582452,0.00013,2]
[328007668,1716771032305,-1072.30568664,0.00013,2]
[328007669,1716771032320,-1231.98607209,0.00013,2]
[328007670,1716771032331,-5807.93379776,0.00013,2]
[328007674,1716771032354,-301.90641716,0.00013,2]
[328007676,1716771032366,-912.27462891,0.00013,2]
[328007677,1716771032377,-1406.01487753,0.00013,2]
[328007681,1716771037917,-203.14996576,0.000129,2]
[328007682,1716771037927,-99.44373144,0.000129,2]
[328007683,1716771037958,-99.78299273,0.000129,2]
[328007684,1716771037968,-206.69439137,0.00013,2]
[328007685,1716771037979,-420.25335452,0.00013,2]
[328007686,1716771037990,-520.089,0.00013,2]
[328007687,1716771038001,-389.719119,0.00013,2]
[328007688,1716771038012,-310.58646232,0.00013,2]
[328007689,1716771038024,-1812.75813668,0.00013,2]
[328007690,1716771038037,-419.6410628,0.00013,2]
[328007691,1716771038048,-556.34975306,0.00013,2]
[328007692,1716771038059,-1340.01178555,0.00013,2]
[328007693,1716771038070,-727.3743122,0.00013,2]
[328007694,1716771038081,-335.39622056,0.00013,2]
[328007695,1716771038100,-605.98118334,0.00013,2]
[328007696,1716771038114,-8574.58982,0.00013,2]
[328007697,1716771038126,-2719.79495747,0.00013,2]
[328007698,1716771038138,-1005.65407581,0.00013,2]
[328007699,1716771038149,-255.53745705,0.00013,2]
[328007700,1716771038162,-292.39394109,0.00013,2]
[328007701,1716771038174,-534.67786524,0.00013,2]
[328007702,1716771038185,-706.97457661,0.00013,2]
[328007703,1716771038197,-597.24,0.00013,2]
[328007704,1716771038213,-4722.5309808,0.00013,2]
[328007705,1716771038224,-1007.66771713,0.00013,2]
[328007706,1716771038234,-3223.7629553,0.00013,2]
[328007707,1716771038245,-44984.60086144,0.00013,2]
[328007708,1716771038257,-8569.60155393,0.00013,2]
[328007709,1716771038269,-518.94618326,0.00013,2]
[328007710,1716771038280,-4843.61870921,0.00013,2]
[328007711,1716771038291,-509.16789362,0.00013,2]
[328007712,1716771038302,-21921.38867615,0.00013,2]
[328007713,1716771038314,-2109.83826179,0.00013,2]
[328007715,1716771038325,-384.2290936,0.00013,2]
[328007716,1716771038344,-84783.93561177,0.00013,2]
[328007717,1716771038355,-785.60753978,0.00013,2]
[328007718,1716771038366,-3511.99297866,0.00013,2]
[328007721,1716771038377,-1284.46871091,0.00013,2]
[328007723,1716771038389,-13542.78771253,0.00013,2]
[328007725,1716771038402,-3703.81801209,0.00013,2]
[328007727,1716771038413,-1774.91550999,0.00013,2]
[328007729,1716771038424,-8668.30132127,0.00013,2]
[328007731,1716771038435,-6877.7,0.00013,2]
[328007732,1716771038447,-16592.60688411,0.00013,2]
[328007736,1716771040668,-11670.97175327,0.00013,2]
[328007739,1716771040680,-667.34675804,0.00013,2]
[328007740,1716771040769,-338.79383807,0.00013,2]
[328007741,1716771040781,-1164.46659444,0.00013,2]
[328007742,1716771040792,-1533.86178755,0.00013,2]
[328007743,1716771040805,-2063.6186834,0.00013,2]
[328007744,1716771041394,-1179.86580013,0.00013,2]
[328007745,1716771041408,-489.59093316,0.00013,2]
[328007746,1716771041419,-583.612171,0.00013,2]
[328007747,1716771041431,-627.57,0.00013,2]
[328007748,1716771041446,-293.7,0.00013,2]
[328007749,1716771042118,-919286.25993021,0.00013,2]
[328007750,1716771042130,-9581.10293057,0.00013,2]
[328007751,1716771042162,-7976.82680112,0.00013,2]
[328007752,1716771042174,-1284.95144135,0.00013,2]
[328007753,1716771042198,-454.18508886,0.00013,2]
[328007754,1716771042209,-960.39317097,0.00013,2]
[328007755,1716771042221,-706.55085503,0.00013,2]
[328007756,1716771042232,-756.87903655,0.00013,2]
[328007757,1716771042245,-1075.97623632,0.00013,2]
[328007758,1716771042260,-216839.64787899,0.00013,2]
[328007759,1716771042271,-342.108,0.00013,2]
[328007760,1716771042283,-976.95202483,0.00013,2]
[328007761,1716771042294,-1149.42897912,0.00013,2]
[328007762,1716771042311,-11244.06541817,0.00013,2]
[328007763,1716771042323,-11328.26866453,0.00013,2]
[328007764,1716771042334,-73183.82708895,0.00013,2]
[328007765,1716771042346,-255187.27404924,0.00013,2]
[328007766,1716771042357,-270554.1836631,0.00013,2]
[328007781,1716771043070,-1113.8701207,0.00013,2]
[328007783,1716771043081,-14301.02488365,0.00013,2]
[328007784,1716771043092,-53391.58459288,0.00013,2]
[328007785,1716771043102,-1963.95623651,0.00013,2]
[328007786,1716771043113,-9047.749023,0.00013,2]
[328007787,1716771043208,-20583.16731527,0.00013,2]
[328007788,1716771043220,-2613.47771923,0.00013,2]
[328007789,1716771043231,-1000.87999974,0.00013,2]
[328007796,1716771044050,-885.5554466,0.00013,2]
[328007797,1716771044063,-3825.93371836,0.00013,2]
[328007798,1716771044081,-648441.64289612,0.00013,2]
[328007799,1716771044091,-23918.08125622,0.00013,2]
[328007800,1716771044100,-161.96,0.00013973,2]
[328007801,1716771044110,-153.5,0.00013973,2]
[328007802,1716771044121,-162.81,0.00013973,2]
[328007803,1716771044132,-1320.21124221,0.00014945,2]
[328007804,1716771044342,-4216.97790112,0.00015,2]
[328007805,1716771044352,-2742.6053412,0.00015,2]
[328007806,1716771044362,-419.39714877,0.00016114,2]
[328007807,1716771044372,-223.74,0.00016835,2]
[328007808,1716771044381,-1320.21124221,0.00016991,2]
[328007809,1716771044391,-345.71235567,0.00017259,2]
[328007810,1716771044400,-1524.68,0.00018649,2]
[328007811,1716771044414,-1500.0,0.00018676,2]
[328007812,1716771044423,-23900.0,0.00018687,2]
[328007813,1716771044433,-428.07,0.00018695,2]
[328007814,1716771044442,-250.0,0.00018725,2]
[328007815,1716771044451,-200.0,0.00018784,2]
[328007816,1716771044460,-150.0,0.00018789,2]
[328007817,1716771044470,-446.46,0.00018872,2]
[328007818,1716771044480,-2751.0,0.00018883,2]
[328007819,1716771044491,-200.0,0.00018891,2]
[328007820,1716771044500,-159.18,0.00018898,2]
[328007821,1716771044510,-250.0,0.00018934,2]
[328007822,1716771044520,-3752.11,0.0001897,2]
[328007823,1716771044530,-880.55,0.00018973,2]
[328007824,1716771044540,-159.18,0.00018996,2]
[328007825,1716771044550,-410.67512791,0.00019,2]
[328007826,1716771044559,-1320.21124221,0.00019036,2]
[328007827,1716771044569,-342.43,0.00019037,2]
[328007828,1716771044578,-159.18,0.00019095,2]
[328007829,1716771044588,-223.74,0.00019099,2]
[328007830,1716771044598,-159.18,0.00019193,2]
[328007831,1716771044607,-159.18,0.00019292,2]
[328007832,1716771044617,-419.39714877,0.00019329,2]
[328007833,1716771044627,-159.18,0.0001939,2]
[328007834,1716771044636,-159.18,0.00019489,2]
[328007835,1716771044645,-157.6,0.000195,2]
[328007836,1716771044655,-200.0,0.00019503,2]
[328007837,1716771044667,-150.5,0.0001957,15]
[328007838,1716771044677,-150.5,0.0001958,15]
[328007839,1716771044686,-229.5,0.0001958,15]
[328007840,1716771044696,-159.18,0.00019587,2]
[328007841,1716771044705,-150.5,0.0001959,15]
[328007842,1716771044714,-159.18,0.00019686,2]
[328007843,1716771044724,-924.0,0.00019696,15]
[328007844,1716771044733,-1035.0,0.00019696,15]
[328007845,1716771044742,-234.89,0.00019706,15]
[328007846,1716771044751,-185.0,0.00019706,15]
[328007847,1716771044760,-924.0,0.00019706,15]
[328007848,1716771044770,-1035.0,0.00019706,15]
[328007849,1716771044781,-150.5,0.00019716,15]
[328007850,1716771044791,-150.5,0.00019716,15]
[328007851,1716771044802,-1035.0,0.00019716,15]
[328007852,1716771044812,-924.0,0.00019716,15]
[328007853,1716771044822,-159.18,0.00019784,2]
[328007854,1716771044832,-154.87,0.00019784,2]
[328007855,1716771044842,-154.87,0.00019791,2]
[328007856,1716771044851,-154.87,0.00019798,2]
[328007857,1716771044861,-154.87,0.00019804,2]
[328007858,1716771044871,-154.87,0.00019811,2]
[328007859,1716771044881,-154.87,0.00019817,2]
[328007860,1716771044891,-154.87,0.00019824,2]
[328007861,1716771044900,-154.87,0.00019831,2]
[328007862,1716771044912,-154.87,0.00019837,2]
[328007863,1716771044921,-154.87,0.00019844,2]
[328007864,1716771044930,-154.87,0.0001985,2]
[328007865,1716771044939,-154.87,0.00019857,2]
[328007866,1716771044949,-154.87,0.00019864,2]
[328007867,1716771044958,-154.87,0.0001987,2]
[328007868,1716771044968,-154.87,0.00019877,2]
[328007869,1716771044978,-159.18,0.00019883,2]
[328007870,1716771044988,-154.87,0.00019883,2]
[328007871,1716771044997,-172.86,0.00019894,2]
[328007872,1716771045008,-5190.00947145,0.0002,2]
[328007873,1716771045017,-6244.01880649,0.0002,2]
[328007874,1716771045027,-634.05792568,0.0002,2]
[328007875,1716771045044,-151.36,0.00020004,2]
[328007876,1716771045053,-811.0,0.00020025,2]
[328007877,1716771045063,-162.81,0.00020447,2]
[328007878,1716771045071,-173.08,0.00020941,2]
[328007879,1716771045081,-1050.0,0.00021,2]
[328007880,1716771045090,-1320.21124221,0.00021082,2]
[328007881,1716771045099,-153.5,0.00021209,2]
[328007882,1716771045109,-880.55,0.00021345,2]
[328007883,1716771045118,-223.74,0.00021363,2]
[328007884,1716771045128,-1524.68,0.00021389,2]
[328007885,1716771045137,-6776.29426629,0.000219,2]
[328007886,1716771045147,-250.0,0.00021918,2]
[328007887,1716771045156,-655.76,0.00021918,2]
[328007888,1716771045167,-419.39714877,0.00022543,2]
[328007889,1716771045177,-1100.0,0.00023,2]
[328007890,1716771045187,-1320.21124221,0.00023127,2]
[328007891,1716771045198,-223.74,0.00023627,2]
[328007892,1716771045208,-380.70037141,0.00023647,2]
[328007893,1716771045218,-880.55,0.00023716,2]
[328007894,1716771045227,-729.22,0.00023767,2]
[328007895,1716771045237,-27737.49066974,0.000239,2]
[328007896,1716771045456,-818.84263907,0.000239,2]
[328007897,1716771045469,-660.19,0.000239,2]
[328007898,1716771045482,-2084.09343301,0.000239,2]
[328007899,1716771045494,-292.35005528,0.000239,2]
[328007900,1716771045506,-68744.72259753,0.000239,2]
[328007901,1716771045518,-36762.55340164,0.000239,2]
[328007902,1716771045530,-486.64475688,0.000239,2]
[328007903,1716771045541,-701.666667,0.000239,2]
[328007904,1716771045553,-341.483816,0.000239,2]
[328007905,1716771045564,-1175.26064,0.000239,2]
[328007906,1716771046065,-436.85825085,0.00012999,2]
[328007907,1716771046075,-3338.10580209,0.000239,2]
[328007908,1716771046088,-467.73676211,0.000239,2]
[328007909,1716771046399,-265.84776388,0.000239,2]
[328007910,1716771046411,-892.54323916,0.000239,2]
[328007911,1716771046422,-363.49361046,0.000239,2]
[328007912,1716771046433,-36728.04919,0.000239,2]
[328007913,1716771046537,-3559.80505742,0.000239,2]
[328007914,1716771046549,-386.34527195,0.000239,2]
[328007915,1716771046560,-1449.50463452,0.000239,2]
[328007916,1716771046571,-25574.61608373,0.000239,2]
[328007917,1716771046582,-6509.23804401,0.000239,2]
[328007918,1716771046593,-8268.0380647,0.000239,2]
[328007919,1716771046605,-3626.45960306,0.000239,2]
[328007920,1716771046616,-854.0,0.000239,2]
[328007921,1716771046627,-2618.94138271,0.000239,2]
[328007922,1716771046638,-430.0,0.000239,2]
[328007923,1716771046649,-30026.94364131,0.000239,2]
[328007924,1716771046661,-253.94151929,0.000239,2]
[328007925,1716771046672,-508.451839,0.000239,2]
[328007927,1716771055927,14342.0427973,0.00031,120]
[328007928,1716771058814,1408.10772611,0.00011,2]
[328007929,1716772052145,-644.06681603,0.00011861,2]
[328007930,1716772052165,-402.95442392,0.00011861,2]
[328007931,1716772052185,-155.0,0.00011862,2]
[328007932,1716772052207,-1299.11942176,0.00011862,2]
[328007933,1716772052227,-990.00089257,0.000119,2]
[328007945,1716772232279,-365.84282618,0.00011899,2]
[328007946,1716772232289,-8099.45570743,0.000119,2]
[328007947,1716772232298,-244.41054685,0.00012,2]
[328007948,1716772232307,-154.37,0.00013973,2]
[328007949,1716772232316,-194.8,0.00018565,2]
[328007950,1716772232325,-657.97,0.00018784,2]